bitfinex/quotes_ETHUSD_20220310
["timestamp","ask_amount","ask_price","bid_price","bid_amount"]
[1646892589125,0.05148138,2598.6,2597.6,3.5]
[1646892589325,0.05415432,2598.6,2597.6,3.5]
[1646892589526,0.05415432,2598.6,2597.6,4.57799048]
[1646892590128,0.87777316,2598.2,2597.6,4.57799048]
[1646892590326,0.05148138,2598.6,2597.6,4.57799048]
[1646892590528,1.01764427,2598.6,2597.6,4.57799048]
[1646892590730,0.05359664,2598.5,2597.6,4.57799048]
[1646892591327,1.23934354,2598.5,2597.6,1.07799048]
[1646892591532,0.06127738,2598.4,2597.6,1.07799048]
[1646892591732,0.06127738,2598.4,2597.6,4.57799048]
[1646892592132,0.06127738,2598.4,2597.6,1.07799048]
[1646892593575,0.06127738,2598.4,2597.5,5.60152]
[1646892594176,0.06127738,2598.4,2597.8,0.95796808]
[1646892595377,0.06127738,2598.4,2597.5,5.60152]
[1646892595677,0.04905582,2598.3,2597.5,5.60152]
[1646892596528,0.04905582,2598.3,2597.6,1.59729062]
[1646892596731,0.04905582,2598.3,2597.7,4.46335]
[1646892597229,0.00267269,2598.6,2597.8,1.1982]
[1646892597530,0.05771677,2598.8,2597.8,1.1982]
[1646892597732,0.00267279,2598.6,2597.8,1.1982]
[1646892597928,1.15766323,2598.6,2598.0,1.19171013]
[1646892598129,0.05871076,2598.5,2598.0,1.19171013]
[1646892599930,0.00110345,2598.8,2598.0,1.19171013]
[1646892599931,0.05800365,2598.8,2598.0,1.19171013]
[1646892600176,0.00267304,2598.6,2598.0,1.19171013]
[1646892600876,0.00267304,2598.6,2597.8,4.6982]
[1646892600877,0.00267304,2598.6,2597.9,0.91718534]
[1646892601077,0.05133823,2598.6,2597.9,0.91718534]
[1646892601280,0.05401132,2598.6,2597.9,0.91718534]
[1646892601481,0.05401132,2598.6,2597.8,1.1982]
[1646892601683,0.05401132,2598.6,2597.4,7.39145126]
[1646892601882,0.05401132,2598.6,2597.4,7.32]
[1646892602282,0.05133823,2598.6,2597.4,7.32]
[1646892602481,1.01467386,2597.8,2597.4,7.32]
[1646892602882,0.05468551,2598.3,2597.4,7.32]
[1646892603938,1.9275,2598.1,2597.4,7.32]
[1646892604121,0.04682112,2598.0,2597.4,7.32]
[1646892604421,2.3121,2598.1,2597.4,7.32]
[1646892604422,0.05644401,2597.8,2597.4,7.32]
[1646892604822,0.9577241,2597.5,2597.4,7.32]
[1646892605823,0.05644401,2597.8,2597.4,7.32]
[1646892607329,0.05358364,2597.6,2597.4,7.32]
[1646892610172,4.51740364,2597.6,2597.4,7.32]
[1646892610374,3.5,2597.5,2597.4,7.32]
[1646892610772,1.01740364,2597.6,2597.4,7.32]
[1646892610974,0.05482126,2597.5,2597.4,7.32]
[1646892612323,0.05482126,2597.5,2597.0,1.1651]
[1646892613122,0.05482126,2597.5,2596.8,8.41361438]
[1646892614327,1.04064328,2597.3,2596.8,8.41361438]
[1646892615974,0.05454823,2597.7,2596.8,8.41361438]
[1646892616375,0.96388,2597.5,2596.8,8.41361438]
[1646892616781,0.05241751,2597.4,2596.8,8.41361438]
[1646892616984,0.92539718,2597.4,2596.8,8.41361438]
[1646892617181,0.04807691,2597.3,2596.8,8.41361438]
[1646892618081,0.06057175,2597.6,2596.8,8.41361438]
[1646892618482,0.06057175,2597.6,2596.8,8.4791622]
[1646892618682,0.05295633,2597.9,2596.9,1.1574]
[1646892618937,0.05295633,2597.9,2597.4,1.08700614]
[1646892618938,1.19798894,2597.9,2597.4,1.08700614]
[1646892619124,0.05109506,2597.8,2597.4,1.08700614]
[1646892620425,0.05109506,2597.8,2597.1,0.00159494]
[1646892621427,0.05109506,2597.8,2596.9,2.12111]
[1646892621629,0.88748201,2597.5,2597.0,0.95789615]
[1646892622229,0.88748201,2597.5,2596.9,1.15899503]
[1646892622677,0.88748201,2597.5,2596.9,1.1574]
[1646892624283,0.9350059,2597.5,2596.9,1.1574]
[1646892624685,0.05527704,2597.4,2596.9,1.1574]
[1646892630675,0.92979138,2597.1,2596.9,1.1574]
[1646892630876,0.92979138,2597.1,2596.8,7.32]
[1646892632683,3.55457428,2597.0,2596.8,7.32]
[1646892632882,0.05457428,2597.0,2596.8,7.32]
[1646892633782,0.49957428,2597.0,2596.8,7.32]
[1646892634026,0.05511593,2596.9,2596.8,7.32]
[1646892635034,3.55511593,2596.9,2596.3,0.0015954]
[1646892635232,0.97762113,2596.5,2596.3,0.0015954]
[1646892635431,1.94187113,2596.5,2596.3,0.0015954]
[1646892635833,1.94187113,2596.5,2596.0,7.32]
[1646892636233,1.18605549,2596.1,2596.0,7.32]
[1646892636434,4.68605549,2596.1,2596.0,7.32]
[1646892636636,1.2440872,2596.1,2595.9,0.00757946]
[1646892636833,0.04889615,2596.0,2595.9,0.00757946]
[1646892637034,0.04889615,2596.0,2595.4,8.4814]
[1646892637434,0.04889615,2596.0,2595.5,0.00758062]
[1646892637686,2.09494615,2595.7,2595.5,0.00758062]
[1646892637882,2.09494615,2595.7,2594.8,2.9025]
[1646892637883,44.5,2595.5,2594.8,7.32]
[1646892638081,4.00653256,2595.4,2594.6,5.86264274]
[1646892638282,0.04863681,2595.3,2594.4,1.13656]
[1646892638486,0.04863681,2595.3,2594.3,7.32]
[1646892638487,0.445,2595.2,2594.3,7.32]
[1646892638682,1.00476732,2594.8,2594.3,8.19551866]
[1646892638882,0.96489,2594.7,2594.3,8.19551866]
[1646892639082,3.55017306,2595.1,2594.3,8.19551866]
[1646892639286,3.945,2595.4,2594.3,8.19551866]
[1646892639487,0.05550656,2595.3,2594.3,8.19647866]
[1646892639686,0.05550656,2595.3,2594.3,8.19551866]
[1646892640289,1.08304436,2595.1,2594.3,8.19551866]
[1646892640489,0.9647,2595.2,2594.7,1.17441406]
[1646892640688,0.05550656,2595.3,2594.7,1.17441406]
[1646892641557,0.05550656,2595.3,2594.4,1.04665694]
[1646892642356,0.05550656,2595.3,2594.4,0.08200694]
[1646892642556,0.05550656,2595.3,2594.4,0.00096]
[1646892642757,0.05550656,2595.3,2594.3,8.3251061]
[1646892642758,0.9864026,2594.9,2594.3,8.3251061]
[1646892642958,0.9864026,2594.9,2594.3,7.14893042]
[1646892643758,0.9864026,2594.9,2594.8,0.01749837]
[1646892643962,0.96476,2595.2,2594.8,0.01749837]
[1646892644159,3.5,2595.4,2594.8,0.01749837]
[1646892644359,0.05129621,2595.3,2594.8,0.01749837]
[1646892645176,3.5,2595.4,2594.8,0.01749837]
[1646892645177,0.05424907,2595.1,2594.8,0.01749837]
[1646892648588,0.05396402,2595.0,2594.8,0.01749837]
[1646892648792,0.05396402,2595.0,2594.4,7.32563429]
[1646892649029,0.05396402,2595.0,2594.4,7.32]
[1646892649030,0.05919827,2594.9,2594.4,7.32]
[1646892650236,0.8675575,2594.8,2594.4,5.77604433]
[1646892650537,0.05919827,2594.9,2594.3,1.13232451]
[1646892653683,0.05919827,2594.9,2594.4,0.01759606]
[1646892658933,0.05919827,2594.9,2594.3,1.13232451]
[1646892659635,1.07742554,2594.7,2594.3,1.13232451]
[1646892659836,1.07742554,2594.7,2594.2,1.15751366]
[1646892660687,3.55162313,2594.6,2594.2,1.15751366]
[1646892660991,0.93756973,2594.3,2594.2,1.15751366]
[1646892661186,0.93756973,2594.3,2594.2,0.02191366]
[1646892662888,0.04709202,2594.5,2594.2,0.02191366]
[1646892663688,0.04709202,2594.5,2594.1,7.32]
[1646892663928,0.04709202,2594.5,2594.0,0.02199507]
[1646892666337,1.01211202,2594.5,2594.0,0.02199507]
[1646892666536,0.96502,2594.5,2594.0,0.02199507]
[1646892666741,0.05888488,2594.4,2594.0,0.02199507]
[1646892666940,1.20640676,2594.2,2594.0,0.02199507]
[1646892668880,0.96502,2594.5,2593.7,0.09970754]
[1646892669079,0.05104984,2594.4,2593.7,0.09970754]
[1646892670186,1.09242845,2594.3,2593.7,0.09970754]
[1646892670985,1.09242845,2594.3,2593.7,0.17835116]
[1646892672035,1.09242845,2594.3,2593.7,3.67835116]
[1646892673239,1.09242845,2594.3,2593.7,0.17835116]
[1646892673939,1.09242845,2594.3,2593.9,0.02059035]
[1646892676385,1.01652866,2594.7,2593.9,0.02059035]
[1646892676588,0.05903432,2594.6,2593.9,0.02059035]
[1646892677787,0.94735313,2594.4,2593.9,0.02059035]
[1646892678789,0.05903432,2594.6,2594.0,1.11209365]
[1646892679033,0.05711517,2594.8,2594.0,1.11209365]
[1646892679838,1.05368474,2594.7,2594.0,1.11209365]
[1646892681840,1.05368474,2594.7,2594.1,1.59936718]
[1646892682338,0.0548202,2594.6,2594.1,1.59936718]
[1646892682538,1.0197902,2594.6,2593.9,0.02059035]
[1646892682784,0.05414759,2594.5,2593.9,0.02059035]
[1646892683585,0.95906817,2594.1,2593.9,0.02059035]
[1646892683988,0.95906817,2594.1,2593.8,0.00592224]
[1646892683989,0.95906817,2594.1,2593.7,0.09970754]
[1646892684185,0.05414759,2594.5,2593.8,1.5995457]
[1646892685186,0.94785047,2594.5,2594.0,1.21303275]
[1646892685387,0.05461306,2594.4,2594.0,1.21303275]
[1646892685587,0.04926442,2594.7,2594.0,1.21303275]
[1646892686643,1.18237144,2594.5,2593.8,0.00592224]
[1646892686838,0.05518282,2594.4,2593.9,1.59941347]
[1646892687044,0.05518282,2594.4,2593.8,0.00592224]
[1646892687242,1.18237144,2594.5,2593.9,1.59945602]
[1646892687444,0.05405711,2594.7,2594.0,3.5]
[1646892687643,1.1281,2594.9,2594.1,0.07461702]
[1646892687843,1.1281,2594.9,2593.8,0.0813303]
[1646892688042,1.1281,2594.9,2593.9,1.59940941]
[1646892688242,1.1281,2594.9,2594.0,0.07402949]
[1646892688444,1.1281,2594.9,2594.0,1.1761877]
[1646892688445,1.07194634,2594.5,2594.0,1.1761877]
[1646892688643,1.07194634,2594.5,2594.1,0.08796565]
[1646892689044,1.07194634,2594.5,2593.9,0.00592201]
[1646892690044,1.01954851,2594.1,2593.8,0.07256399]
[1646892691490,1.01954851,2594.1,2593.7,0.188565]
[1646892691887,1.01954851,2594.1,2593.6,7.32]
[1646892692088,1.01954851,2594.1,2593.4,1.14402315]
[1646892692089,0.05347418,2594.0,2593.4,1.14402315]
[1646892692290,1.16107586,2593.6,2593.4,1.1381]
[1646892692686,1.16107586,2593.6,2593.3,0.00592338]
[1646892693489,1.16107586,2593.6,2593.2,0.06983169]
[1646892694150,0.9653,2593.7,2593.2,0.06983169]
[1646892694347,1.2358,2595.1,2593.2,0.06983169]
[1646892694348,0.3846,2594.6,2593.6,50.0]
[1646892694547,0.04258372,2594.5,2593.9,0.01302145]
[1646892695349,0.96506,2594.4,2593.9,0.01302145]
[1646892695551,1.02667528,2594.1,2593.9,0.01302145]
[1646892700492,0.96506,2594.4,2593.9,0.01302145]
[1646892701632,0.93074579,2594.0,2593.9,0.01302145]
[1646892702034,0.9823873,2594.0,2593.9,0.01302145]
[1646892707903,0.93074579,2594.0,2593.9,0.01302145]
[1646892710035,0.43074579,2594.0,2593.9,0.01302145]
[1646892717437,3.93074579,2594.0,2593.9,0.01302145]
[1646892718136,3.97403954,2594.0,2593.9,0.01302145]
[1646892718838,0.47403954,2594.0,2593.9,0.01302145]
[1646892719638,0.43074579,2594.0,2593.9,0.01302145]
[1646892720886,1.20042828,2594.3,2593.9,0.01302145]
[1646892721089,0.05212828,2594.3,2593.9,0.01302145]
[1646892721990,1.22279729,2594.3,2593.9,0.01302145]
[1646892723393,0.0439319,2594.6,2593.9,3.51302145]
[1646892723596,0.0439319,2594.6,2593.9,3.60158483]
[1646892724438,1.22837741,2594.5,2593.9,3.60158483]
[1646892724836,1.22837741,2594.5,2593.9,0.10158483]
[1646892726538,1.22837741,2594.5,2593.9,1.26885659]
[1646892727543,0.0439319,2594.6,2593.9,1.26885659]
[1646892727784,0.0439319,2594.6,2594.0,0.08404275]
[1646892727985,0.965,2594.5,2594.0,0.08404275]
[1646892728585,0.965,2594.5,2593.9,0.01302145]
[1646892729286,0.9899786,2594.4,2593.9,0.01302145]
[1646892729487,1.19753381,2594.0,2593.9,0.01302145]
[1646892733444,1.19753381,2594.0,2593.9,0.01144447]
[1646892737589,0.9651,2594.2,2593.9,0.01144447]
[1646892737788,2.7353,2595.0,2593.9,0.01144447]
[1646892737789,0.965,2594.4,2593.9,0.01144447]
[1646892737988,1.92999,2594.7,2593.9,0.01144447]
[1646892738187,2.2903,2595.0,2593.9,0.01144447]
[1646892738787,0.96424729,2594.9,2593.9,1.1922547]
[1646892739038,0.96424729,2594.9,2594.0,0.08469068]
[1646892739341,0.48331637,2594.9,2594.4,0.09636935]
[1646892739542,0.96485,2594.8,2594.4,0.09636935]
[1646892739938,3.32203993,2595.0,2594.4,0.09636935]
[1646892741143,1.07898481,2594.5,2594.4,0.09636935]
[1646892744590,4.57898481,2594.5,2594.4,0.09636935]
[1646892744989,1.12228426,2594.5,2594.4,0.09636935]
[1646892746839,4.57898481,2594.5,2594.4,0.09636935]
[1646892747242,1.07898481,2594.5,2594.4,0.09636935]
[1646892747638,4.57898481,2594.5,2594.4,0.09636935]
[1646892747938,1.07898481,2594.5,2594.4,0.09636935]
[1646892749540,5.02398481,2594.5,2594.4,0.09636935]
[1646892749743,5.02398481,2594.5,2593.9,0.00592421]
[1646892749944,0.96525,2594.4,2593.9,0.00467701]
[1646892750189,3.945,2594.3,2593.6,0.00096]
[1646892750385,3.945,2594.3,2593.9,0.00592421]
[1646892751085,0.9653,2594.1,2593.9,0.00592421]
[1646892751285,0.91300954,2593.6,2593.2,0.00096]
[1646892751489,0.91300954,2593.6,2593.1,0.08490874]
[1646892753389,1.2481,2594.1,2593.3,0.07316626]
[1646892753587,3.945,2594.3,2593.3,0.07316626]
[1646892754034,3.945,2594.3,2593.4,0.07936071]
[1646892754235,4.3296,2594.3,2593.4,0.07936071]
[1646892754437,0.95802368,2593.7,2593.4,0.07936071]
[1646892755037,4.84971,2594.3,2593.4,0.07936071]
[1646892755239,4.46511,2594.3,2593.4,0.07936071]
[1646892755436,0.96511,2594.3,2593.4,0.07936071]
[1646892755639,4.46507,2594.2,2593.4,0.07936071]
[1646892756437,0.96507,2594.2,2593.4,0.07936071]
[1646892756640,0.90411763,2593.8,2593.4,0.07936071]
[1646892756840,0.96507,2594.2,2593.4,0.07936071]
[1646892757041,6.9099,2594.4,2593.4,0.07936071]
[1646892757042,7.8749,2594.4,2593.4,0.07936071]
[1646892757346,9.8339,2594.5,2593.5,0.08551454]
[1646892757983,1.20242943,2594.3,2593.9,0.07966865]
[1646892758186,1.20242943,2594.3,2593.9,3.5]
[1646892758384,1.20242943,2594.3,2594.0,0.08963484]
[1646892760984,1.20242943,2594.3,2593.6,0.00096]
[1646892761285,1.20242943,2594.3,2593.6,0.00592267]
[1646892761942,1.20242943,2594.3,2593.6,0.00467579]
[1646892762142,1.20242943,2594.3,2593.5,0.18288142]
[1646892762743,0.96511,2594.1,2593.5,0.18288142]
[1646892763346,1.23297065,2593.8,2593.5,0.18288142]
[1646892764446,0.96504,2594.3,2593.5,0.0873639]
[1646892765286,1.34964,2594.3,2593.5,0.0873639]
[1646892765486,0.96526,2594.0,2593.3,0.08426544]
[1646892765686,2.36034712,2594.1,2593.3,0.08330544]
[1646892765687,2.80534712,2594.1,2593.3,0.08330544]
[1646892765889,2.42074712,2594.1,2593.4,0.00592326]
[1646892766289,0.05090481,2594.0,2593.4,0.00592326]
[1646892766493,1.21761623,2594.0,2593.4,0.00592326]
[1646892766896,1.13172433,2593.5,2593.1,0.07097329]
[1646892767091,1.13172433,2593.5,2593.2,0.00592372]
[1646892767598,0.05366979,2593.9,2593.2,0.00592372]
[1646892767995,1.93051,2594.1,2593.1,0.07001329]
[1646892768396,0.96514,2594.0,2593.1,0.07001329]
[1646892768596,0.90614468,2593.6,2593.1,0.07001329]
[1646892771142,0.01983286,2594.0,2593.1,0.07001329]
[1646892771341,0.01983286,2594.0,2593.4,0.2322]
[1646892772144,1.13048878,2593.9,2593.4,1.12771199]
[1646892772345,1.13048878,2593.9,2593.6,0.08533828]
[1646892772546,0.01983286,2594.0,2593.9,49.95607721]
[1646892772790,0.01983286,2594.0,2593.6,0.07535882]
[1646892774695,0.01864237,2594.1,2593.6,0.07535882]
[1646892774696,1.00464069,2594.1,2593.6,0.07535882]
[1646892778944,0.01012767,2594.0,2593.6,0.07535882]
[1646892779145,0.01983286,2594.0,2593.6,0.07535882]
[1646892784646,0.01983286,2594.0,2593.6,4.64230976]
[1646892784848,0.01864237,2594.1,2593.9,0.96483]
[1646892785045,0.9649,2594.8,2593.9,0.96483]
[1646892785046,0.9649,2594.8,2594.1,50.98135763]
[1646892785445,0.9649,2594.8,2593.9,10.0]
[1646892785850,1.3495,2594.8,2593.9,10.0]
[1646892786050,1.02907927,2594.3,2593.9,10.0]
[1646892787687,0.96493,2594.6,2593.9,10.0]
[1646892787889,0.86493,2594.6,2593.9,10.0]
[1646892788692,1.03791897,2594.5,2593.9,10.0]
[1646892789094,0.86493,2594.6,2594.0,4.38757606]
[1646892789298,1.5651,2594.9,2594.0,5.18557606]
[1646892789499,0.02352302,2594.7,2594.0,5.18557606]
[1646892790398,0.89392043,2594.6,2594.0,5.18557606]
[1646892790697,0.89392043,2594.6,2594.1,0.96472]
[1646892791100,0.89392043,2594.6,2594.0,3.5]
[1646892791743,0.89392043,2594.6,2593.9,10.0]
[1646892791942,0.89392043,2594.6,2593.9,10.96481]
[1646892792344,1.13038628,2594.2,2593.9,10.96481]
[1646892792543,0.02352302,2594.7,2594.3,49.86961372]
[1646892792743,0.9649,2594.6,2593.9,110.0]
[1646892793544,1.93959023,2594.6,2594.0,4.4725364]
[1646892793746,0.97469023,2594.6,2594.0,3.5]
[1646892794343,0.02009269,2594.5,2594.0,3.5]
[1646892794943,0.02009269,2594.5,2594.1,0.07742429]
[1646892795185,0.04664483,2594.8,2594.5,50.97990731]
[1646892795385,1.34932,2595.1,2594.3,1.01093662]
[1646892795586,1.08727732,2595.0,2594.3,1.01093662]
[1646892795786,0.05183343,2594.9,2594.3,1.01093662]
[1646892796592,0.05183343,2594.9,2594.2,3.50592144]
[1646892796992,0.05183343,2594.9,2594.2,3.5]
[1646892797292,0.05183343,2594.9,2594.2,3.58837669]
[1646892797697,0.05183343,2594.9,2594.2,0.08837669]
[1646892797893,1.40125343,2594.9,2594.0,0.00688178]
[1646892798093,1.40125343,2594.9,2593.9,10.0]
[1646892798094,0.05055166,2594.8,2593.9,10.0]
[1646892798495,0.05055166,2594.8,2594.0,0.00592178]
[1646892798694,1.10109918,2594.6,2594.0,0.00592178]
[1646892798949,0.05424896,2594.5,2594.0,0.00592178]
[1646892799339,0.05424896,2594.5,2593.9,11.0457599]
[1646892799539,0.96507,2594.6,2593.9,14.5457599]
[1646892799738,0.96507,2594.6,2594.0,0.07703845]
[1646892802546,1.14755107,2594.3,2594.0,0.07703845]
[1646892802787,1.14755107,2594.3,2594.0,3.57703845]
[1646892802988,1.14755107,2594.3,2594.0,0.07703845]
[1646892803390,1.19929599,2594.3,2593.9,10.0]
[1646892804491,0.05174492,2594.3,2593.9,10.0]
[1646892804691,0.04153268,2594.5,2593.9,10.0]
[1646892804991,0.96501,2594.4,2593.9,10.0]
[1646892805189,0.04854766,2594.3,2593.9,10.0]
[1646892805591,0.04854766,2594.3,2593.6,0.00592269]
[1646892806094,1.01335933,2594.0,2593.6,0.00592269]
[1646892806542,0.04557837,2593.9,2593.3,8.38413025]
[1646892806849,0.04612363,2594.3,2593.3,8.38909374]
[1646892807045,0.04612363,2594.3,2593.3,8.39005374]
[1646892807440,1.34972,2594.1,2593.3,8.39005374]
[1646892807642,1.21722749,2593.9,2593.3,1.06784669]
[1646892807841,1.26725048,2593.9,2593.2,1.2378]
[1646892808042,0.05002299,2593.9,2593.4,0.96502]
[1646892808943,0.04321582,2594.2,2593.3,1.93001]
[1646892809144,0.8677254,2593.8,2593.3,1.93001]
[1646892809345,0.8677254,2593.8,2593.2,1.23876]
[1646892809642,0.8677254,2593.8,2593.2,1.2378]
[1646892811501,0.96543,2593.4,2592.9,0.00096]
[1646892811795,3.55698936,2593.3,2593.0,0.00592417]
[1646892811995,0.06356117,2593.2,2593.0,0.00592417]
[1646892812394,1.01558193,2593.1,2593.0,0.00592417]
[1646892812594,1.01558193,2593.1,2592.5,0.90077283]
[1646892812793,1.02832318,2593.0,2592.6,0.00124739]
[1646892812996,0.06030099,2592.9,2592.6,0.0059251]
[1646892813497,0.05963028,2592.8,2592.6,0.0059251]
[1646892813696,0.05963028,2592.8,2592.1,7.35855984]
[1646892813973,1.02611666,2592.6,2592.1,0.03855984]
[1646892814154,0.06187797,2592.5,2592.2,0.0059259]
[1646892814758,3.945,2593.0,2592.2,0.89123681]
[1646892814958,0.05181317,2592.8,2592.2,0.88531091]
[1646892815358,0.05181317,2592.8,2592.1,0.03855984]
[1646892815558,1.01740317,2592.8,2592.1,0.03855984]
[1646892815758,0.0546671,2592.7,2592.1,0.03855984]
[1646892816662,1.35019,2592.8,2592.1,0.03855984]
[1646892816663,0.06468067,2592.5,2592.1,0.03855984]
[1646892818495,0.06585744,2592.7,2592.1,0.03855984]
[1646892818994,4.85139,2592.8,2592.1,0.03855984]
[1646892818995,0.9657,2592.6,2592.1,0.03855984]
[1646892819294,1.93133,2592.9,2592.1,0.03855984]
[1646892819295,0.05536114,2592.9,2592.1,0.03855984]
[1646892819496,0.05536114,2592.9,2592.4,1.08415163]
[1646892819700,0.05536114,2592.9,2592.1,0.03855984]
[1646892820199,0.06193784,2592.6,2592.1,0.03855984]
[1646892821002,0.0600084,2592.5,2592.1,0.03855984]
[1646892821453,0.05753816,2592.9,2592.1,0.03855984]
[1646892822249,0.05753816,2592.9,2592.4,1.00694211]
[1646892822447,0.05753816,2592.9,2592.1,0.03855984]
[1646892823047,0.05753816,2592.9,2592.1,1.00404984]
[1646892823448,1.12662904,2592.6,2592.1,0.03855984]
[1646892823648,0.05355248,2592.5,2592.1,0.03855984]
[1646892827104,1.12028581,2592.3,2592.1,0.03855984]
[1646892827305,0.06154825,2592.2,2592.1,0.03855984]
[1646892827509,0.50654825,2592.2,2592.1,0.03855984]
[1646892827705,0.50654825,2592.2,2592.1,0.04035807]
[1646892828107,0.50654825,2592.2,2591.9,0.04149492]
[1646892828307,0.05472362,2592.1,2591.9,0.04149492]
[1646892830252,0.05472362,2592.1,2591.7,0.04263176]
[1646892831051,0.05472362,2592.1,2591.6,0.00463932]
[1646892832791,0.05472362,2592.1,2591.9,0.96832509]
[1646892833194,0.063452,2592.3,2591.9,0.96832509]
[1646892833792,0.063452,2592.3,2591.6,7.32463932]
[1646892834998,0.063452,2592.3,2591.7,1.20007666]
[1646892836751,0.063452,2592.3,2591.7,1.12007666]
[1646892837549,0.96583,2592.2,2591.7,1.12007666]
[1646892837849,0.96583,2592.2,2591.7,2.25477666]
[1646892837850,0.06134225,2592.1,2591.7,2.25477666]
[1646892838052,0.06134225,2592.1,2591.7,1.1347]
[1646892840050,0.06134225,2592.1,2591.6,0.0193758]
[1646892840051,1.14802592,2592.1,2591.6,0.0193758]
[1646892840291,0.96592,2591.9,2591.6,0.0193758]
[1646892840895,0.05539646,2591.8,2591.6,0.0193758]
[1646892841697,0.06150926,2592.0,2591.6,0.0193758]
[1646892847693,0.9659,2592.0,2591.6,0.0193758]
[1646892847895,0.05402712,2591.9,2591.6,0.0193758]
[1646892848503,1.0444708,2591.7,2591.6,0.0193758]
[1646892851550,0.05402712,2591.9,2591.6,0.0193758]
[1646892852552,1.13313147,2591.9,2591.6,0.0193758]
[1646892852753,0.05566496,2591.8,2591.6,0.0193758]
[1646892854754,1.18553885,2592.3,2591.7,41.5]
[1646892855054,12.75456145,2592.9,2591.9,0.01219925]
[1646892855055,2.2513,2592.8,2591.9,0.01219925]
[1646892855699,1.02346659,2593.3,2592.6,0.92950657]
[1646892855896,0.05367894,2593.4,2592.6,0.92950657]
[1646892855897,0.05367894,2593.4,2592.7,0.08053856]
[1646892856103,0.04916189,2593.6,2592.7,0.08053856]
[1646892856904,0.04916189,2593.6,2593.1,1.04125254]
[1646892857101,10.71798682,2593.7,2593.1,1.04125254]
[1646892857102,1.22165047,2593.7,2593.1,1.04125254]
[1646892857302,0.96525,2593.8,2593.1,1.04125254]
[1646892857502,0.05157239,2593.7,2593.1,1.04125254]
[1646892857704,0.04464034,2594.3,2593.2,0.08093277]
[1646892857904,5.681,2594.4,2593.4,0.96501]
[1646892857905,0.04772597,2594.2,2593.4,0.96501]
[1646892858104,0.04525254,2594.6,2593.5,0.07708663]
[1646892858304,1.26654266,2594.8,2594.1,0.97295263]
[1646892858522,0.05376222,2594.7,2594.1,2.05675263]
[1646892858705,0.05376222,2594.7,2594.1,5.55675263]
[1646892858964,0.05376222,2594.7,2594.1,2.05675263]
[1646892859154,0.05376222,2594.7,2594.1,5.55675263]
[1646892859352,0.00110345,2594.8,2594.7,0.05376222]
[1646892859554,1.9735405,2594.8,2594.7,0.05376222]
[1646892859752,3.16789418,2594.8,2594.7,0.05376222]
[1646892860757,1.9735405,2594.8,2594.7,0.05376222]
[1646892860962,1.97243705,2594.8,2594.7,0.05376222]
[1646892862060,2.94054687,2594.8,2594.7,0.05376222]
[1646892862694,1.05980022,2594.3,2594.2,0.00592133]
[1646892862898,2.02500022,2594.3,2593.6,0.10251195]
[1646892863196,2.02500022,2594.3,2594.2,0.00592132]
[1646892864198,2.02500022,2594.3,2593.6,0.10155195]
[1646892864399,2.02500022,2594.3,2593.7,0.00592247]
[1646892865399,2.02500022,2594.3,2593.6,0.10155195]
[1646892866199,2.02500022,2594.3,2593.6,0.19056774]
[1646892867446,1.05980022,2594.3,2593.8,1.11554745]
[1646892867847,0.05420605,2594.5,2593.8,1.11554745]
[1646892868746,0.05420605,2594.5,2593.6,0.19056774]
[1646892868946,0.05420605,2594.5,2593.6,0.10155195]
[1646892869349,0.05420605,2594.5,2593.6,0.10747464]
[1646892869748,0.8308,2594.6,2593.7,0.07132552]
[1646892869749,0.94874485,2594.2,2593.7,0.07132552]
[1646892869948,0.96515,2594.1,2593.7,0.07132552]
[1646892870397,0.94874485,2594.2,2593.7,0.07132552]
[1646892870398,0.3858,2594.5,2593.7,0.07132552]
[1646892870999,1.35082,2594.5,2593.7,0.07132552]
[1646892871198,0.96502,2594.5,2593.7,3.57132552]
[1646892871400,0.89232991,2594.4,2593.8,0.08074732]
[1646892873003,0.96509,2594.3,2593.8,0.08074732]
[1646892873202,0.96509,2594.3,2593.6,0.00592281]
[1646892873402,0.445,2594.2,2593.6,0.00592281]
[1646892873802,0.3858,2594.1,2593.2,0.08209286]
[1646892874047,0.86759831,2594.0,2593.4,0.00592326]
[1646892874252,0.96529,2594.1,2593.4,0.00592326]
[1646892875049,1.35109,2594.1,2593.3,1.21417039]
[1646892875451,0.96529,2594.1,2593.3,1.21417039]
[1646892875851,2.11947502,2594.1,2593.3,1.21417039]
[1646892876051,0.96529,2594.1,2593.4,0.07174178]
[1646892876251,1.35087,2594.3,2593.5,0.08282069]
[1646892876651,0.96507,2594.3,2593.5,0.08282069]
[1646892876852,0.445,2594.4,2593.5,0.08282069]
[1646892877054,1.51242192,2594.6,2593.9,0.91419916]
[1646892877253,1.51242192,2594.6,2593.9,0.98999921]
[1646892877451,1.51242192,2594.6,2593.5,0.00096]
[1646892877452,1.89822192,2594.6,2593.5,0.00096]
[1646892877704,1.89822192,2594.6,2593.7,0.00592247]
[1646892877705,2.86319192,2594.6,2593.7,0.00592247]
[1646892878600,2.86319192,2594.6,2593.7,1.15037129]
[1646892878802,2.86319192,2594.6,2593.8,0.07182942]
[1646892881963,2.47739192,2594.6,2593.8,0.07182942]
[1646892883662,2.43596228,2594.6,2593.8,0.07182942]
[1646892885797,2.43596228,2594.6,2593.8,0.07100081]
[1646892886599,0.96497,2594.6,2593.8,0.07100081]
[1646892887599,1.14482061,2594.3,2593.8,0.07100081]
[1646892888201,0.96497,2594.6,2593.8,0.07100081]
[1646892889252,1.14144424,2594.4,2593.8,0.07100081]
[1646892889546,2.10650424,2594.4,2593.8,0.07100081]
[1646892890247,2.10650424,2594.4,2593.7,0.00592258]
[1646892890645,2.10650424,2594.4,2593.5,0.00096]
[1646892890847,2.10650424,2594.4,2593.5,0.00592292]
[1646892891650,1.22368998,2593.9,2593.5,0.00592292]
[1646892891850,1.22368998,2593.9,2593.4,0.07545876]
[1646892892050,1.22368998,2593.9,2593.4,0.00592315]
[1646892892895,10.8296,2594.5,2593.4,1.0549998]
[1646892893098,10.8296,2594.5,2593.5,0.06963931]
[1646892893296,10.4438,2594.5,2593.5,0.06963931]
[1646892894097,1.0051398,2594.4,2593.5,0.06963931]
[1646892894398,1.0051398,2594.4,2593.9,0.07214854]
[1646892895799,1.0051398,2594.4,2593.6,0.09039979]
[1646892896650,1.0051398,2594.4,2593.6,0.0844771]
[1646892897050,1.0051398,2594.4,2593.7,0.97930255]
[1646892897250,0.96499,2594.6,2593.8,0.0816162]
[1646892898253,0.96499,2594.6,2593.7,0.00592258]
[1646892899054,0.90467785,2594.0,2593.5,0.08013078]
[1646892899255,0.90467785,2594.0,2593.6,0.00592269]
[1646892900298,0.90467785,2594.0,2593.2,0.0817343]
[1646892900500,1.86985785,2594.0,2593.2,0.972138]
[1646892900797,0.90467785,2594.0,2593.3,0.08146588]